bitfinex-derivatives/quotes_ETHF0:USTF0_20260123
["timestamp","ask_amount","ask_price","bid_price","bid_amount"]
[1769175144043,0.44625408,2937.7,2936.8,3.543]
[1769175144242,0.44625408,2937.6,2936.8,3.543]
[1769175144442,0.49866346,2937.9,2936.8,3.543]
[1769175144641,0.44634663,2937.8,2936.8,3.543]
[1769175144841,0.44634663,2937.7,2936.8,3.543]
[1769175145048,0.44634663,2937.6,2936.8,3.543]
[1769175145248,0.49866346,2937.9,2936.8,3.543]
[1769175145449,0.94292435,2937.8,2936.8,3.543]
[1769175145651,0.44426089,2937.7,2936.8,3.543]
[1769175148543,0.44426089,2937.6,2936.8,3.543]
[1769175148742,0.44426089,2937.5,2936.8,3.543]
[1769175149046,0.44426089,2937.4,2936.8,3.543]
[1769175149242,0.44426089,2937.3,2936.8,3.543]
[1769175149444,0.49866346,2937.9,2936.8,3.543]
[1769175149644,0.44457104,2937.8,2936.7,0.17048]
[1769175149950,0.44457104,2937.7,2936.8,3.567]
[1769175150252,0.44457104,2937.6,2936.8,3.567]
[1769175150451,0.44457104,2937.5,2936.8,3.567]
[1769175150650,0.44457104,2937.4,2936.8,3.567]
[1769175150851,0.44457104,2937.3,2936.8,3.567]
[1769175151053,0.49866346,2937.9,2936.8,3.567]
[1769175151349,0.44379556,2937.8,2936.8,3.567]
[1769175151548,0.44379556,2937.7,2936.8,3.567]
[1769175151748,0.44379556,2937.6,2936.8,3.567]
[1769175152049,0.44378861,2937.5,2936.8,3.567]
[1769175152354,0.00265609,2938.0,2936.8,3.567]
[1769175160455,0.00265609,2938.0,2936.8,3.73748]
[1769175161248,0.6057513,2938.0,2936.8,3.73748]
[1769175164358,0.43851175,2937.9,2936.8,3.73748]
[1769175164558,0.43851175,2937.8,2936.8,3.73748]
[1769175164758,0.43851175,2937.7,2936.8,3.73748]
[1769175164949,0.00265609,2938.0,2936.8,3.73748]
[1769175167860,0.6057513,2938.0,2936.8,3.73748]
[1769175171760,0.93267814,2937.9,2936.8,3.73748]
[1769175171959,0.6057513,2938.0,2936.8,3.73748]
[1769175176871,0.43253871,2937.9,2936.8,3.73748]
[1769175177168,0.43253871,2937.8,2936.8,3.73748]
[1769175177468,0.43253871,2937.7,2936.8,3.73748]
[1769175177666,0.43253871,2937.6,2936.8,3.73748]
[1769175177864,0.43253871,2937.5,2936.8,3.73748]
[1769175178067,0.43253871,2937.4,2936.8,3.73748]
[1769175178368,0.6057513,2938.0,2936.8,3.73748]
[1769175178568,0.43259564,2937.9,2936.8,3.73748]
[1769175178766,0.43259564,2937.8,2936.8,3.73748]
[1769175179065,0.43259564,2937.7,2936.8,3.73748]
[1769175179266,0.43259564,2937.6,2936.8,3.73748]
[1769175179467,0.43259564,2937.5,2936.8,3.73748]
[1769175179665,0.43259564,2937.4,2936.8,3.73748]
[1769175179870,0.6057513,2938.0,2936.8,3.73748]
[1769175180170,0.43260717,2937.9,2936.8,3.73748]
[1769175180358,0.43260717,2937.8,2936.8,3.73748]
[1769175180560,0.43260717,2937.7,2936.8,3.73748]
[1769175180759,0.43260717,2937.6,2936.8,3.73748]
[1769175181057,0.43261925,2937.5,2936.8,3.73748]
[1769175181262,0.43261925,2937.4,2936.8,3.73748]
[1769175181462,0.6057513,2938.0,2936.8,3.73748]
[1769175181761,0.432634,2937.9,2936.8,3.73748]
[1769175181963,0.432634,2937.8,2936.8,3.73748]
[1769175182168,0.432634,2937.7,2936.8,3.73748]
[1769175182369,0.432634,2937.6,2936.8,3.73748]
[1769175182566,0.432634,2937.5,2936.8,3.73748]
[1769175182768,0.6057513,2938.0,2936.8,3.73748]
[1769175182769,0.432634,2937.4,2936.8,3.73748]
[1769175182968,0.6057513,2938.0,2936.8,3.73748]
[1769175183168,0.43262873,2937.9,2936.8,3.73748]
[1769175183468,0.43262873,2937.8,2936.8,3.73748]
[1769175183668,0.43262873,2937.7,2936.8,3.73748]
[1769175183871,0.43262873,2937.6,2936.8,3.73748]
[1769175184071,0.43262873,2937.5,2936.8,3.73748]
[1769175184370,0.43262873,2937.4,2936.8,3.73748]
[1769175184571,0.6057513,2938.0,2936.8,3.73748]
[1769175184770,0.4326321,2937.9,2936.8,3.73748]
[1769175185066,0.4326321,2937.8,2936.8,3.73748]
[1769175185271,0.4326321,2937.7,2936.8,3.73748]
[1769175185472,0.4326321,2937.6,2936.8,3.73748]
[1769175185674,0.4326321,2937.5,2936.8,3.73748]
[1769175185873,0.4326321,2937.4,2936.8,3.73748]
[1769175186073,0.6057513,2938.0,2936.8,3.73748]
[1769175186274,0.42916055,2937.9,2936.8,3.73748]
[1769175186474,0.42916055,2937.8,2936.8,3.73748]
[1769175186675,0.42916055,2937.7,2936.8,3.73748]
[1769175186865,0.42916055,2937.6,2936.8,3.73748]
[1769175187071,0.42916055,2937.5,2936.8,3.73748]
[1769175187271,0.6057513,2938.0,2936.8,3.73748]
[1769175187474,0.42916668,2937.9,2936.8,3.73748]
[1769175187674,0.42916668,2937.8,2936.8,3.73748]
[1769175187875,0.42916668,2937.7,2936.8,3.73748]
[1769175188076,0.42916668,2937.6,2936.8,3.73748]
[1769175188375,0.42916668,2937.5,2936.8,3.73748]
[1769175188573,0.6057513,2938.0,2936.8,3.73748]
[1769175188773,0.42917414,2937.9,2936.8,3.73748]
[1769175188977,0.42917414,2937.8,2936.8,3.73748]
[1769175189177,0.42917414,2937.7,2936.8,3.73748]
[1769175189476,0.42917414,2937.6,2936.8,3.73748]
[1769175189677,0.42917414,2937.5,2936.8,3.73748]
[1769175189878,0.69264757,2937.9,2936.8,3.73748]
[1769175190082,0.42918277,2937.8,2936.8,3.73748]
[1769175190282,0.42918277,2937.7,2936.8,3.73748]
[1769175190481,0.42918277,2937.6,2936.8,3.73748]
[1769175190682,0.42918277,2937.5,2936.8,3.73748]
[1769175190874,0.69264757,2937.9,2936.8,3.73748]
[1769175191074,0.42919223,2937.8,2936.8,3.73748]
[1769175191272,0.42919223,2937.7,2936.8,3.73748]
[1769175191477,0.42919223,2937.6,2936.8,3.73748]
[1769175191676,0.42919223,2937.5,2936.8,3.73748]
[1769175191881,0.69264757,2937.9,2936.8,3.73748]
[1769175192076,0.42920239,2937.8,2936.8,3.73748]
[1769175192278,0.42920239,2937.7,2936.8,3.73748]
[1769175192478,0.69264757,2937.9,2936.8,3.73748]
[1769175192680,0.42920211,2937.8,2936.8,3.73748]
[1769175192880,0.42920211,2937.7,2936.8,3.73748]
[1769175193081,0.42920211,2937.6,2936.8,3.73748]
[1769175193281,0.42920211,2937.5,2936.8,3.73748]
[1769175193484,0.69264757,2937.9,2936.8,3.73748]
[1769175193784,0.42920185,2937.8,2936.8,3.73748]
[1769175193984,0.42920185,2937.7,2936.8,3.73748]
[1769175194184,0.42920185,2937.6,2936.8,3.73748]
[1769175194388,0.42920185,2937.5,2936.8,3.73748]
[1769175194588,0.69264757,2937.9,2936.8,3.73748]
[1769175194788,0.42920143,2937.8,2936.8,3.73748]
[1769175194989,0.42920143,2937.7,2936.8,3.73748]
[1769175195181,0.42920143,2937.6,2936.8,3.73748]
[1769175195380,0.42920143,2937.5,2936.8,3.73748]
[1769175195583,0.69264757,2937.9,2936.8,3.73748]
[1769175195888,0.42920933,2937.8,2936.8,3.73748]
[1769175196088,0.42920933,2937.7,2936.8,3.73748]
[1769175196285,0.42920933,2937.6,2936.8,3.73748]
[1769175196593,0.42920933,2937.5,2936.8,3.73748]
[1769175196793,0.42920933,2937.4,2936.8,3.73748]
[1769175196995,0.69264757,2937.9,2936.8,3.73748]
[1769175197195,0.42921923,2937.8,2936.8,3.73748]
[1769175197390,0.42921923,2937.7,2936.8,3.73748]
[1769175197685,0.42921923,2937.6,2936.8,3.73748]
[1769175197891,0.42921923,2937.5,2936.8,3.73748]
[1769175198094,0.42921923,2937.4,2936.8,3.73748]
[1769175198292,0.69264757,2937.9,2936.8,3.73748]
[1769175198492,0.4292405,2937.8,2936.8,3.73748]
[1769175198689,0.4292405,2937.7,2936.8,3.73748]
[1769175198889,0.4292405,2937.6,2936.8,3.73748]
[1769175199090,0.4292405,2937.5,2936.8,3.73748]
[1769175199291,0.4292405,2937.4,2936.8,3.73748]
[1769175199590,0.69264757,2937.9,2936.8,3.73748]
[1769175199893,0.42826338,2937.8,2936.8,3.73748]
[1769175200096,0.42826338,2937.7,2936.8,3.73748]
[1769175200289,0.69264757,2937.9,2936.8,3.73748]
[1769175200290,0.42826338,2937.6,2936.8,3.73748]
[1769175200487,0.42826338,2937.5,2936.8,3.73748]
[1769175200683,0.42826338,2937.4,2936.8,3.73748]
[1769175200894,0.69264757,2937.9,2936.8,3.73748]
[1769175201094,0.42826451,2937.8,2936.8,6.78803688]
[1769175201294,0.42826451,2937.7,2936.8,6.78803688]
[1769175201496,0.42826451,2937.6,2936.8,6.78803688]
[1769175201697,0.42826451,2937.5,2936.8,6.78803688]
[1769175201897,0.42826451,2937.4,2936.8,6.78803688]
[1769175202198,0.69264757,2937.9,2936.8,3.73748]
[1769175202399,0.42826843,2937.8,2936.8,3.73748]
[1769175202595,0.42826843,2937.7,2936.8,3.73748]
[1769175202792,0.42826843,2937.6,2936.8,3.73748]
[1769175202993,0.42826843,2937.5,2936.8,3.73748]
[1769175203193,0.42826843,2937.4,2936.8,3.73748]
[1769175203392,0.69264757,2937.9,2936.8,3.73748]
[1769175203593,0.42827278,2937.8,2936.8,3.73748]
[1769175203793,0.42827278,2937.7,2936.8,3.73748]
[1769175203994,0.42827278,2937.6,2936.8,3.73748]
[1769175204194,0.42827278,2937.5,2936.8,3.73748]
[1769175204394,0.42827278,2937.4,2936.8,3.73748]
[1769175204595,0.69264757,2937.9,2936.8,3.73748]
[1769175204803,0.42827734,2937.8,2936.9,0.90821101]
[1769175205101,0.42827734,2937.7,2936.9,0.90821101]
[1769175205296,0.00265609,2938.0,2936.9,0.90821101]
[1769175205297,0.42827734,2937.6,2936.9,0.90821101]
[1769175205495,0.42827734,2937.5,2936.9,0.90821101]
[1769175205697,0.00265609,2938.0,2936.9,0.90821101]
[1769175205991,0.42827206,2937.9,2936.9,0.90821101]
[1769175206190,0.42827206,2937.8,2936.9,0.90821101]
[1769175206399,0.42827206,2937.7,2936.9,0.90821101]
[1769175206599,0.42827206,2937.6,2936.9,0.90821101]
[1769175206800,0.42827206,2937.5,2936.9,0.90821101]
[1769175207001,0.00265609,2938.0,2936.9,0.90821101]
[1769175207300,0.4282756,2937.9,2936.8,3.73748]
[1769175207492,0.4282756,2937.8,2936.8,3.73748]
[1769175207690,0.4282756,2937.7,2936.8,3.73748]
[1769175208003,0.4282756,2937.6,2936.8,3.73748]
[1769175208200,0.4282756,2937.5,2936.8,3.73748]
[1769175208398,0.4282756,2937.4,2936.8,3.73748]
[1769175208600,0.69530366,2938.0,2936.8,3.73748]
[1769175208901,0.42830894,2937.9,2936.8,3.73748]
[1769175209098,0.42830894,2937.8,2936.8,3.73748]
[1769175209291,0.90821101,2937.3,2936.4,4.26249981]
[1769175209496,0.42830894,2937.2,2936.4,8.01149981]
[1769175209697,0.42830894,2937.1,2936.4,3.749]
[1769175209899,0.42830894,2937.0,2936.4,3.749]
[1769175210099,0.90821101,2937.3,2936.4,3.749]
[1769175210299,0.42816999,2937.2,2936.4,3.749]
[1769175210607,0.42816999,2937.1,2936.4,3.749]
[1769175210801,0.42816999,2937.0,2936.4,3.749]
[1769175211002,0.90821101,2937.3,2936.4,3.749]
[1769175211204,1.12059263,2937.2,2936.4,3.749]
[1769175211404,0.42794506,2937.1,2936.4,3.749]
[1769175211600,0.42794506,2937.0,2936.4,3.749]
[1769175211804,0.42794506,2936.9,2936.4,3.749]
[1769175212103,0.69264757,2937.2,2936.4,3.749]
[1769175212306,0.4278,2937.1,2936.4,3.749]
[1769175212501,0.4278,2937.0,2936.4,3.749]
[1769175212702,0.69264757,2937.2,2936.4,3.749]
[1769175212902,0.73703911,2937.8,2936.4,3.749]
[1769175213094,1.68711107,2937.7,2936.4,3.749]
[1769175213302,0.75669691,2937.7,2936.4,3.749]
[1769175217411,0.75291321,2937.5,2936.4,3.749]
[1769175224915,0.42054341,2937.4,2936.4,3.749]
[1769175225111,0.42054341,2937.3,2936.4,3.749]
[1769175225316,0.42054341,2937.2,2936.4,3.749]
[1769175225517,0.42054341,2937.1,2936.4,3.749]
[1769175225716,0.75291321,2937.5,2936.4,3.749]
[1769175225919,0.42053776,2937.4,2936.4,3.749]
[1769175226228,1.17283836,2937.3,2936.4,3.749]
[1769175226515,0.42053778,2937.2,2936.4,3.749]
[1769175226817,0.42053778,2937.1,2936.4,3.749]
[1769175227016,0.75230058,2937.3,2936.4,3.749]
[1769175227216,0.41719473,2937.2,2936.4,3.749]
[1769175227416,0.41719473,2937.1,2936.4,3.749]
[1769175227613,0.75230058,2937.3,2936.4,3.749]
[1769175227814,0.41720385,2937.2,2936.4,3.749]
[1769175228014,0.41720385,2937.1,2936.4,3.749]
[1769175228213,0.75230058,2937.3,2936.4,3.749]
[1769175228412,0.41720385,2937.2,2936.4,3.749]
[1769175228612,0.41720385,2937.1,2936.4,3.749]
[1769175228807,0.75230058,2937.3,2936.4,3.749]
[1769175229008,0.41722047,2937.2,2936.1,0.17051]
[1769175229214,0.41722047,2937.1,2936.0,0.90821101]
[1769175229517,0.41722047,2937.0,2936.0,0.90821101]
[1769175229714,0.41722047,2936.9,2935.8,7.19610751]
[1769175230017,0.41726399,2936.8,2935.8,7.19610751]
[1769175230218,0.41726399,2936.7,2935.8,7.19610751]
[1769175230408,0.90821101,2936.7,2935.8,7.19610751]
[1769175230607,0.41722083,2936.6,2935.8,3.41410751]
[1769175230808,0.90821101,2936.4,2935.8,3.41410751]
[1769175231013,1.16595533,2936.3,2935.4,0.00442432]
[1769175231214,0.41722083,2936.2,2935.4,0.00442432]
[1769175232210,1.16582809,2936.2,2935.4,0.00442432]
[1769175232421,0.74860726,2936.2,2935.4,0.00442432]
[1769175233314,0.75849155,2936.5,2935.4,0.00442432]
[1769175233618,0.75338404,2936.3,2935.4,0.00442432]
[1769175233823,1.1700288,2936.2,2935.4,0.00442432]
[1769175234012,0.75338404,2936.1,2935.4,0.00442432]
[1769175234212,0.41659961,2936.0,2935.2,3.786]
[1769175234414,0.75338404,2936.1,2935.2,3.786]
[1769175234620,0.41639031,2936.0,2934.8,0.90821101]
[1769175234819,0.75338404,2936.1,2934.8,0.90821101]
[1769175235019,0.41639021,2936.0,2934.8,0.90821101]
[1769175235218,0.75338404,2936.1,2934.8,0.91217154]
[1769175235524,0.41622711,2936.0,2934.8,0.91217154]
[1769175235716,0.75338404,2936.1,2934.8,0.91217154]
[1769175235916,0.41622685,2936.0,2934.8,0.91217154]
[1769175236116,0.75338404,2936.1,2934.8,0.91217154]
[1769175236320,0.00510751,2936.5,2935.1,0.90821101]
[1769175236524,0.41614362,2936.4,2935.1,0.90821101]
[1769175236722,0.41614362,2936.3,2935.1,0.90821101]
[1769175236922,0.41614362,2936.2,2934.9,0.3490498]
[1769175237122,0.00510751,2936.5,2934.9,0.3490498]
[1769175237319,1.16285131,2936.4,2934.8,1.08363432]
[1769175237524,0.41614693,2936.3,2934.8,1.08363432]
[1769175237826,0.41614693,2936.2,2934.8,1.08363432]
[1769175238028,0.74670438,2936.4,2934.8,1.08363432]
[1769175238229,0.41611341,2936.3,2934.8,1.08363432]
[1769175238422,0.41611341,2936.2,2934.8,1.08363432]
[1769175238623,0.74670438,2936.4,2934.8,1.44526817]
[1769175238824,0.41610421,2936.3,2934.8,1.44526817]
[1769175239028,0.41610421,2936.2,2934.8,1.44526817]
[1769175239330,0.74670438,2936.4,2934.8,1.44526817]
[1769175239532,0.41604868,2936.3,2934.8,1.44526817]
[1769175239826,0.74531326,2936.1,2934.8,0.17455053]
[1769175240238,0.41603084,2936.0,2934.8,0.17455053]
[1769175240528,0.74531326,2936.1,2934.8,0.17455053]
[1769175240730,1.16170745,2936.0,2934.8,0.17455053]
[1769175241033,0.74573471,2936.0,2934.8,0.17455053]
[1769175241233,0.74573471,2936.0,2934.8,0.00396053]
[1769175242135,0.88805833,2935.8,2934.8,0.00396053]
[1769175242333,0.8904664,2935.8,2934.8,0.00396053]
[1769175243136,0.88805833,2935.6,2934.8,0.00396053]
[1769175245136,0.00240807,2935.8,2934.8,0.00396053]
[1769175245741,0.86159207,2935.8,2934.8,0.00396053]
[1769175246445,0.00240807,2935.8,2934.8,0.00396053]
[1769175249753,0.86159207,2935.8,2934.8,0.00396053]
[1769175255657,0.41587733,2935.7,2934.8,0.00396053]
[1769175255855,0.86159207,2935.8,2934.8,0.00396053]
[1769175256049,1.27506107,2935.7,2934.8,0.00396053]
[1769175256248,0.859184,2935.7,2934.8,0.00396053]
[1769175257458,1.27549532,2935.6,2934.8,0.00396053]
[1769175257659,0.859184,2935.6,2934.8,0.00396053]
[1769175258456,1.27576891,2935.5,2934.8,0.00396053]
[1769175258658,0.859184,2935.4,2934.8,0.00396053]
[1769175258860,0.859184,2935.4,2934.4,0.17062]
[1769175259862,0.859184,2935.4,2934.4,0.17321398]
[1769175264766,0.41722882,2935.3,2934.4,0.17321398]
[1769175264966,0.859184,2935.4,2934.4,0.17321398]
[1769175265169,0.41722049,2935.3,2934.4,0.17321398]
[1769175265366,0.859184,2935.4,2934.4,0.17321398]
[1769175265568,0.4172279,2935.3,2934.4,0.17321398]
[1769175265870,0.859184,2935.4,2934.4,0.17321398]
[1769175266070,0.41720382,2935.3,2934.4,0.17321398]
[1769175266263,0.859184,2935.4,2934.4,0.17321398]
[1769175266465,0.41721017,2935.3,2934.4,0.17321398]
[1769175266664,0.859184,2935.4,2934.4,0.17321398]
[1769175266864,0.41722641,2935.3,2934.4,0.17321398]
[1769175267064,0.859184,2935.4,2934.4,0.17321398]
[1769175267364,0.41733983,2935.3,2934.4,0.17321398]
[1769175267567,0.859184,2935.4,2934.4,0.17321398]
[1769175267768,0.41740145,2935.3,2934.4,0.17321398]
[1769175267970,0.859184,2935.4,2934.4,0.17321398]
[1769175268170,0.41740495,2935.3,2934.4,0.17321398]
[1769175268372,0.859184,2935.4,2934.4,0.17321398]
[1769175268572,0.41741176,2935.3,2934.4,0.17321398]
[1769175268868,0.41741176,2935.2,2934.4,0.17321398]
[1769175269071,0.859184,2935.4,2934.4,0.17321398]
[1769175269271,0.41744312,2935.3,2934.4,0.17321398]
[1769175269470,0.41744312,2935.2,2934.4,0.17321398]
[1769175269671,0.859184,2935.4,2934.4,0.17321398]
[1769175269971,0.41752918,2935.3,2934.4,0.17321398]
[1769175270161,0.41752918,2935.2,2934.4,0.17321398]
[1769175270469,0.859184,2935.4,2934.4,0.17321398]
[1769175270670,0.41753313,2935.3,2934.4,0.17321398]
[1769175270870,0.41753313,2935.2,2934.4,0.17321398]
[1769175271064,0.859184,2935.4,2934.4,0.17321398]
[1769175271367,0.41752829,2935.3,2934.4,0.17321398]
[1769175271566,0.41752829,2935.2,2934.4,0.17321398]
[1769175271771,0.859184,2935.4,2934.4,0.17321398]
[1769175272070,0.4175492,2935.3,2934.4,0.17321398]
[1769175272269,0.4175492,2935.2,2934.4,0.17321398]
[1769175272470,0.859184,2935.4,2934.4,0.17321398]
[1769175272661,0.41755692,2935.3,2934.4,0.17321398]
[1769175272868,0.41755692,2935.2,2934.4,0.17321398]
[1769175273172,0.859184,2935.4,2934.4,0.17321398]
[1769175273371,0.41757058,2935.3,2934.4,0.17321398]
[1769175273572,0.41757058,2935.2,2934.4,0.17321398]
[1769175273772,0.859184,2935.4,2934.4,0.17321398]
[1769175273970,0.41757092,2935.3,2934.4,0.17321398]
[1769175274172,0.41757092,2935.2,2934.4,0.17321398]
[1769175274371,0.859184,2935.4,2934.4,0.17321398]
[1769175274573,0.41755597,2935.3,2934.4,0.17321398]
[1769175274774,0.41755597,2935.2,2934.4,0.17321398]
[1769175274963,0.00240807,2935.8,2934.4,0.17321398]
[1769175275169,1.31550853,2935.7,2934.4,3.22377086]
[1769175275474,0.41755256,2935.6,2934.4,3.22377086]
[1769175276575,1.31550853,2935.6,2934.4,3.22377086]
[1769175276870,0.41755256,2935.5,2934.4,3.22377086]
[1769175277069,0.89795597,2935.4,2934.4,3.05315086]
[1769175277269,0.89795597,2935.2,2934.4,0.00259398]
[1769175277574,0.41755256,2935.1,2934.4,0.00259398]
[1769175277770,0.89795597,2935.2,2934.4,0.00259398]
[1769175277972,0.41615917,2935.1,2934.4,0.00259398]
[1769175278177,0.89795597,2935.2,2934.4,0.00259398]
[1769175278378,0.41616526,2935.1,2934.4,0.00259398]
[1769175278580,0.89795597,2935.2,2934.4,0.00259398]
[1769175278871,0.41616516,2935.1,2934.4,0.00259398]
[1769175279080,0.89795597,2935.2,2934.4,0.00259398]
[1769175279377,0.41618572,2935.1,2934.4,0.00259398]
[1769175279577,0.89795597,2935.2,2934.4,0.00259398]
[1769175279876,0.41618565,2935.1,2934.4,0.00259398]
[1769175280076,0.89795597,2935.2,2934.4,0.00259398]
[1769175280276,0.4161805,2935.1,2934.4,0.00259398]
[1769175280580,0.89795597,2935.2,2934.4,0.00259398]
[1769175280784,0.41620622,2935.1,2934.4,0.00259398]
[1769175280977,0.41620622,2935.0,2934.4,0.00259398]
[1769175281178,0.89795597,2935.2,2934.4,0.00259398]
[1769175281376,0.41623002,2935.1,2934.4,0.00259398]
[1769175281575,0.41623002,2935.0,2934.4,0.00259398]
[1769175281776,0.00510751,2935.1,2934.4,0.00259398]
[1769175286182,0.00510751,2935.1,2934.4,3.22377086]
[1769175294287,0.00510751,2935.1,2934.4,3.05315086]
[1769175294489,0.00510751,2935.1,2934.4,0.00259398]
[1769175295585,0.90306348,2935.1,2934.4,0.00259398]
[1769175295986,1.31410138,2935.0,2934.4,0.00259398]
[1769175296187,0.89795597,2934.9,2934.4,0.00259398]
[1769175296488,0.89795597,2934.9,2934.2,3.933]
[1769175297387,0.89795597,2934.9,2934.2,3.93550234]
[1769175301495,0.41576883,2934.8,2934.2,3.93550234]
[1769175301691,0.89795597,2934.9,2934.2,3.93550234]
[1769175301891,0.41578052,2934.8,2934.2,3.93550234]
[1769175302095,0.89795597,2934.9,2934.2,3.93550234]
[1769175302296,0.41561802,2934.8,2934.2,3.93550234]
[1769175302494,0.00510751,2935.1,2934.2,3.93550234]
[1769175302692,0.41561365,2935.0,2934.2,3.93550234]
[1769175302994,0.00510751,2935.1,2934.4,0.90983029]
[1769175303593,0.00510751,2935.1,2934.2,3.93550234]
[1769175304593,0.41560568,2935.0,2934.2,3.93550234]
[1769175304792,0.00510751,2935.1,2934.2,3.93550234]
[1769175304995,0.4156127,2935.0,2934.2,3.93550234]
[1769175305190,1.0166656,2935.1,2934.2,3.93550234]
[1769175305495,1.01155809,2934.9,2934.2,3.93550234]
[1769175305696,0.41557609,2934.8,2934.2,3.93550234]
[1769175305995,1.01155809,2934.9,2934.2,3.93550234]
[1769175306196,0.41553734,2934.8,2934.2,3.93550234]
[1769175306496,1.01155809,2934.9,2934.2,3.93550234]
[1769175306796,0.41548287,2934.8,2934.2,3.93550234]
[1769175306995,1.01155809,2934.9,2934.2,3.93550234]
[1769175307197,0.41548277,2934.8,2934.2,3.93550234]
[1769175307402,1.01155809,2934.9,2934.2,3.93550234]
[1769175307598,0.41545053,2934.8,2934.2,3.93550234]
[1769175307798,1.01155809,2934.9,2934.2,3.93550234]
[1769175308091,0.41540018,2934.8,2934.2,3.93550234]
[1769175308296,0.97511145,2934.5,2933.7,3.411]
[1769175309393,0.97511145,2934.9,2933.9,0.90983029]
[1769175309597,0.00510751,2935.1,2933.9,0.90983029]
[1769175309598,0.97511145,2934.7,2933.9,0.00390665]
[1769175309998,0.97511145,2934.5,2933.9,0.00390665]
[1769175317304,0.97511145,2934.5,2933.4,3.97]
[1769175317505,0.40889465,2934.4,2933.0,7.54208717]
[1769175317803,0.97511145,2934.3,2933.0,4.49153029]
[1769175318405,0.97511145,2934.3,2933.0,4.49593439]
[1769175319604,0.97511145,2934.1,2933.0,0.91423439]
[1769175321108,0.97511145,2934.5,2933.3,0.90983029]
[1769175321298,0.97511145,2934.4,2933.6,0.90983029]
[1769175321609,0.97511145,2934.3,2933.3,0.90983029]
[1769175322705,0.97511145,2934.3,2933.6,0.90983029]
[1769175322905,0.97511145,2934.3,2933.3,0.90983029]
[1769175324413,0.97511145,2934.8,2933.9,0.90983029]
[1769175324713,0.97511145,2934.8,2933.6,1.08049029]
[1769175325013,0.97511145,2934.8,2933.9,0.90983029]
[1769175325812,0.00510751,2935.1,2934.5,0.90983029]
[1769175327214,0.97511145,2935.7,2934.8,0.90983029]
[1769175327521,0.40907407,2935.6,2934.8,0.90983029]
[1769175327813,0.97511145,2935.7,2934.8,0.90983029]
[1769175328008,0.40907387,2935.6,2934.8,0.90983029]
[1769175328208,0.97511145,2935.7,2934.8,0.90983029]
[1769175328408,0.40899552,2935.6,2934.8,0.90983029]
[1769175328609,0.97511145,2935.7,2934.8,0.90983029]
[1769175328910,0.40900517,2935.6,2934.8,0.90983029]
[1769175329111,0.97511145,2935.7,2934.8,0.90983029]
[1769175329311,0.97511145,2935.7,2934.5,0.9149378]
[1769175330309,0.97511145,2935.2,2934.5,0.00510751]
[1769175330515,0.97511145,2934.9,2933.6,7.54304717]
[1769175330814,0.97511145,2934.9,2933.6,4.32183029]
[1769175332008,1.00890904,2934.7,2933.6,4.32183029]
[1769175336017,1.00890904,2934.7,2933.9,0.90983029]
[1769175336217,1.01401655,2935.1,2933.9,0.90983029]
[1769175336413,0.40889613,2935.0,2933.9,0.90983029]
[1769175336617,1.01401655,2935.1,2933.9,0.90983029]
[1769175336618,0.40889613,2934.9,2933.9,0.90983029]
[1769175336807,1.00890904,2934.7,2933.6,4.32183029]
[1769175337619,0.40890266,2934.6,2933.6,4.32183029]
[1769175337820,1.00890904,2934.5,2933.6,4.32183029]
[1769175338015,1.00890904,2934.9,2933.6,4.32183029]
[1769175338215,0.4089044,2934.8,2933.9,0.90983029]
[1769175338417,0.4089044,2934.7,2933.9,0.90983029]
[1769175338616,1.00890904,2934.9,2933.9,0.90983029]
[1769175338814,0.40893656,2934.8,2933.9,0.90983029]
[1769175339019,0.40893656,2934.7,2933.9,0.90983029]
[1769175339220,1.00890904,2934.9,2933.9,0.90983029]
[1769175339421,0.40893356,2934.8,2933.9,0.90983029]
[1769175339726,0.40893356,2934.7,2933.9,0.90983029]
[1769175339919,1.00890904,2934.9,2933.9,0.90983029]
[1769175340119,0.40893289,2934.8,2933.9,0.90983029]
[1769175340318,1.00890904,2934.9,2933.9,0.90983029]
[1769175340519,0.40894342,2934.8,2933.9,0.90983029]
[1769175340719,1.00890904,2934.9,2933.9,0.90983029]
[1769175340920,0.40894421,2934.8,2933.9,0.90983029]
[1769175341226,1.00890904,2934.9,2933.9,0.90983029]
[1769175341519,0.40894368,2934.8,2933.9,0.90983029]
[1769175341719,0.00510751,2935.1,2933.9,0.90983029]
[1769175341920,0.40896828,2935.0,2933.9,0.90983029]
[1769175342127,0.00510751,2935.1,2933.9,0.90983029]
[1769175342329,0.40896146,2935.0,2933.9,0.90983029]
[1769175342537,0.00510751,2935.1,2933.9,0.90983029]
[1769175342740,0.40896127,2935.0,2933.9,0.90983029]
[1769175342931,0.00510751,2935.1,2933.9,0.90983029]
[1769175343131,0.40896144,2935.0,2933.9,0.90983029]
[1769175343334,0.00510751,2935.1,2933.9,0.90983029]
[1769175343533,0.40895543,2935.0,2933.9,0.90983029]
[1769175343836,0.00510751,2935.1,2933.9,0.90983029]
[1769175344036,0.40894429,2935.0,2933.9,0.90983029]
[1769175344237,0.00510751,2935.1,2933.9,0.90983029]
[1769175344437,0.40893894,2935.0,2933.9,0.90983029]
[1769175344638,0.00510751,2935.1,2933.9,0.90983029]
[1769175344840,0.40895269,2935.0,2933.9,0.90983029]
[1769175345036,0.00510751,2935.1,2933.9,0.90983029]
[1769175345340,0.4089534,2935.0,2933.9,0.90983029]
[1769175345545,0.00510751,2935.1,2933.9,0.90983029]
[1769175345741,0.40894512,2935.0,2933.9,0.90983029]
[1769175346042,0.00510751,2935.1,2933.9,0.90983029]
[1769175346240,0.40891703,2935.0,2933.9,0.90983029]
[1769175346543,0.00510751,2935.1,2933.9,0.90983029]
[1769175346741,0.40894034,2935.0,2933.9,0.90983029]
[1769175346942,0.00510751,2935.1,2933.9,0.90983029]
[1769175347242,0.40894071,2935.0,2933.9,0.90983029]
[1769175347547,0.00510751,2935.1,2933.9,0.90983029]
[1769175347842,0.40894452,2935.0,2933.9,0.90983029]
[1769175348038,0.00510751,2935.1,2933.9,0.90983029]
[1769175348340,0.4089447,2935.0,2933.9,0.90983029]
[1769175348539,0.00510751,2935.1,2933.9,0.90983029]
[1769175348742,0.40898571,2935.0,2933.9,0.90983029]
[1769175348942,0.00510751,2935.1,2933.9,0.90983029]
[1769175349141,0.40899401,2935.0,2933.9,0.90983029]
[1769175349335,0.00510751,2935.1,2933.9,0.90983029]
[1769175349535,0.40904717,2935.0,2933.9,0.90983029]
[1769175349734,0.00510751,2935.1,2933.9,0.90983029]
[1769175349941,0.40904738,2935.0,2933.9,0.90983029]
[1769175350241,0.00510751,2935.1,2933.9,0.90983029]
[1769175350444,0.40914099,2935.0,2933.9,0.90983029]
[1769175350647,0.00510751,2935.1,2933.9,0.90983029]